bitfinex-derivatives/quotes_BTCF0:USTF0_20251119
["timestamp","ask_amount","ask_price","bid_price","bid_amount"]
[1763558422218,0.1265089,91801.0,91800.0,0.04747803]
[1763558422717,0.1265089,91801.0,91800.0,0.04647803]
[1763558423713,0.1265089,91801.0,91800.0,0.00219803]
[1763558423914,0.1265089,91801.0,91800.0,0.04647803]
[1763558425315,0.1265089,91801.0,91800.0,0.00219803]
[1763558425919,0.1090216,91792.0,91791.0,0.08761988]
[1763558426119,0.1090216,91792.0,91791.0,0.05839]
[1763558427220,0.3608,91795.0,91791.0,0.05839]
[1763558427221,0.3608,91795.0,91794.0,0.04454]
[1763558428222,0.3608,91803.0,91800.0,0.04454]
[1763558428516,0.1090098,91802.0,91800.0,0.04454]
[1763558428912,0.1090133,91799.0,91798.0,0.03628]
[1763558429409,0.3608,91803.0,91800.0,0.02449803]
[1763558429614,0.1090098,91802.0,91800.0,0.04673803]
[1763558430217,0.3608,91803.0,91802.0,0.04454]
[1763558430523,0.46576,91803.0,91802.0,0.04454]
[1763558435617,0.33462653,91803.0,91802.0,0.04454]
[1763558435920,0.10916365,91810.0,91809.0,0.1532515]
[1763558436117,0.00016335,91810.0,91809.0,0.1532515]
[1763558436310,0.00016335,91810.0,91809.0,0.04425]
[1763558440829,0.00016335,91810.0,91799.0,0.02922988]
[1763558441029,0.3608,91802.0,91801.0,0.04308]
[1763558441737,0.2139618,91809.0,91808.0,0.04308]
[1763558444040,0.1090018,91809.0,91808.0,0.04308]
[1763558444241,0.2139618,91809.0,91808.0,0.04308]
[1763558444443,0.1090018,91809.0,91808.0,0.04308]
[1763558444638,0.2139618,91809.0,91808.0,0.04308]
[1763558447336,0.109005,91806.0,91805.0,0.03443]
[1763558447536,0.1090086,91803.0,91802.0,0.04308]
[1763558447736,0.4698086,91803.0,91802.0,0.04308]
[1763558448737,0.4698086,91803.0,91802.0,0.02113]
[1763558449239,0.4698086,91803.0,91802.0,0.04308]
[1763558450742,0.3608,91803.0,91802.0,0.04308]
[1763558451244,0.00016335,91810.0,91809.0,0.04308]
[1763558453653,0.00016335,91810.0,91809.0,0.07229639]
[1763558454352,0.00016335,91810.0,91809.0,0.04308]
[1763558456650,0.00016335,91810.0,91809.0,0.1520815]
[1763558458951,0.10916365,91810.0,91809.0,0.1520815]
[1763558459552,0.00016335,91810.0,91809.0,0.1520815]
[1763558459757,0.00016335,91810.0,91809.0,0.19104406]
[1763558460356,0.10916365,91810.0,91809.0,0.19104406]
[1763558461454,0.00016335,91810.0,91809.0,0.19104406]
[1763558461852,3.35e-06,91810.0,91809.0,0.19104406]
[1763558462055,0.108992,91817.0,91816.0,0.04434]
[1763558462760,0.4908292,91820.0,91819.0,0.1533296]
[1763558463152,0.38200335,91829.0,91828.0,0.1533189]
[1763558463351,0.00016335,91829.0,91828.0,0.1533189]
[1763558464260,0.00116335,91829.0,91828.0,0.1533189]
[1763558464459,0.00216335,91829.0,91828.0,0.1533189]
[1763558464659,0.04568335,91829.0,91828.0,0.02914521]
[1763558464864,0.04568335,91829.0,91812.0,0.0139]
[1763558464865,0.04352,91822.0,91821.0,0.07348521]
[1763558465365,0.04352,91822.0,91821.0,0.04434]
[1763558465756,0.04352,91822.0,91820.0,0.00219803]
[1763558465960,0.04352,91821.0,91820.0,0.04653803]
[1763558466163,0.1525072,91821.0,91820.0,0.04653803]
[1763558466666,0.04352,91821.0,91820.0,0.04653803]
[1763558468061,0.02104,91821.0,91820.0,0.04653803]
[1763558468662,0.04352,91821.0,91820.0,0.04653803]
[1763558469174,0.04352,91821.0,91820.0,0.00219803]
[1763558469360,0.04352,91811.0,91810.0,0.00016335]
[1763558469668,0.40432,91811.0,91810.0,0.04523605]
[1763558472865,0.40432,91811.0,91810.0,0.00089605]
[1763558473064,0.40432,91811.0,91810.0,0.00016335]
[1763558476169,0.04352,91797.0,91796.0,0.07348521]
[1763558476369,0.04352,91797.0,91796.0,0.02121]
[1763558476767,0.04352,91797.0,91796.0,0.04434]
[1763558477273,0.1525405,91793.0,91792.0,0.40514]
[1763558481173,0.04352,91793.0,91792.0,0.40514]
[1763558481475,0.3608,91800.0,91799.0,0.04434]
[1763558481476,0.40432,91800.0,91799.0,0.04434]
[1763558481676,0.40651799,91800.0,91799.0,0.04434]
[1763558485369,0.1535905,91793.0,91792.0,0.0446]
[1763558485973,0.04457,91793.0,91792.0,0.0446]
[1763558486368,0.5143829,91800.0,91799.0,0.0446]
[1763558486568,0.51658089,91800.0,91799.0,0.0446]
[1763558486768,0.40756799,91800.0,91799.0,0.0446]
[1763558490184,0.1535917,91792.0,91791.0,0.0585]
[1763558490381,0.04457,91791.0,91790.0,0.0007327]
[1763558490569,0.4698217,91792.0,91781.0,0.02915134]
[1763558490570,0.04457,91788.0,91781.0,0.02915134]
[1763558490885,0.05525,91788.0,91780.0,0.0007327]
[1763558491086,0.1536119,91775.0,91774.0,0.07375134]
[1763558491384,0.1536119,91775.0,91774.0,0.02267]
[1763558491577,0.1533102,91768.0,91767.0,0.04547]
[1763558492474,0.1533102,91768.0,91767.0,0.07461649]
[1763558492679,0.1523102,91768.0,91767.0,0.07461649]
[1763558493178,0.1523102,91768.0,91767.0,0.04647]
[1763558493374,0.1523102,91768.0,91767.0,0.04747]
[1763558495582,0.1523102,91768.0,91767.0,0.002]
[1763558498383,0.1523102,91768.0,91767.0,0.02512]
[1763558499391,0.1523102,91768.0,91767.0,0.04747]
[1763558499596,0.04426,91768.0,91767.0,0.04747]
[1763558499983,0.1533102,91768.0,91767.0,0.04747]
[1763558502296,0.04426,91768.0,91767.0,0.04747]
[1763558503794,0.1533102,91768.0,91767.0,0.04747]
[1763558504294,0.1533102,91768.0,91767.0,0.001]
[1763558504591,0.1533102,91768.0,91758.0,0.00016344]
[1763558504592,0.1523209,91759.0,91758.0,0.00016344]
[1763558504794,0.6182409,91759.0,91758.0,0.00016344]
[1763558511400,0.6192409,91759.0,91758.0,0.00016344]
[1763558511895,0.1533423,91741.0,91740.0,0.05893]
[1763558512095,0.1533423,91741.0,91740.0,0.0596627]
[1763558512400,0.1533423,91741.0,91740.0,0.0462027]
[1763558514205,0.04426,91741.0,91740.0,0.0596627]
[1763558515297,0.04426,91741.0,91740.0,0.0007327]
[1763558515500,0.04426,91739.0,91738.0,0.00011218]
[1763558515803,0.51018,91739.0,91738.0,0.00011218]
[1763558517106,0.51018,91739.0,91738.0,0.00111218]
[1763558518210,0.51018,91739.0,91738.0,0.02423218]
[1763558518408,0.51018,91739.0,91738.0,0.00111218]
[1763558520910,0.153353,91732.0,91731.0,0.00011309]
[1763558521105,0.1533589,91727.0,91726.0,0.00027255]
[1763558521308,0.1533779,91711.0,91710.0,0.05893]
[1763558521515,0.14938,91711.0,91710.0,0.0596627]
[1763558521702,0.15033728,91711.0,91710.0,0.0596627]
[1763558523500,0.15033728,91711.0,91710.0,0.0238527]
[1763558523712,0.00219799,91710.0,91707.0,0.02147]
[1763558523912,0.04349,91708.0,91707.0,0.02147]
[1763558524209,0.1526115,91708.0,91707.0,0.02147]
[1763558524510,0.1526115,91708.0,91707.0,0.04271]
[1763558525309,0.04349,91708.0,91707.0,0.04271]
[1763558525516,0.04349,91708.0,91707.0,0.02147]
[1763558526107,0.04349,91699.0,91698.0,0.1653026]
[1763558526306,0.14865,91699.0,91698.0,0.05617]
[1763558526615,0.00219799,91700.0,91699.0,0.04271]
[1763558526806,0.38191728,91711.0,91710.0,0.1305891]
[1763558527010,0.50955728,91711.0,91710.0,0.1663218]
[1763558527514,0.40439728,91711.0,91710.0,0.1663218]
[1763558527716,0.00010728,91711.0,91710.0,0.1663218]
[1763558528114,0.10526728,91711.0,91710.0,0.1663218]
[1763558528317,0.00010728,91711.0,91710.0,0.1663218]
[1763558528509,0.10526728,91711.0,91710.0,0.1663218]
[1763558528707,0.14875728,91711.0,91710.0,0.0572027]
[1763558529310,0.04349,91706.0,91698.0,0.01346]
[1763558529619,0.04349,91699.0,91698.0,0.05617]
[1763558529806,0.14865,91699.0,91698.0,0.05617]
[1763558530714,0.14865,91699.0,91698.0,0.04271]
[1763558535023,0.04349,91697.0,91696.0,0.3608]
[1763558535212,0.2142929,91699.0,91688.0,0.04271]
[1763558535213,0.1526341,91689.0,91688.0,0.04271]
[1763558535409,0.15272453,91689.0,91688.0,0.02147]
[1763558535709,0.15272453,91689.0,91688.0,0.04271]
[1763558535920,0.25788453,91689.0,91688.0,0.04271]
[1763558536106,0.14874043,91689.0,91688.0,0.04271]
[1763558536514,0.04358043,91689.0,91688.0,0.04271]
[1763558536718,0.14874043,91689.0,91688.0,0.04271]
[1763558537515,0.14874043,91689.0,91688.0,0.02147]
[1763558538116,0.14874043,91689.0,91686.0,0.00027267]
[1763558538117,0.04349,91687.0,91686.0,0.00027267]
[1763558538315,0.04349,91687.0,91686.0,0.04298267]
[1763558539420,0.04349,91687.0,91686.0,0.02174267]
[1763558539618,0.04349,91687.0,91670.0,0.1091662]
[1763558539619,0.1526532,91673.0,91672.0,0.02147]
[1763558539814,0.14865,91673.0,91672.0,0.04271]
[1763558542115,0.14865,91673.0,91672.0,0.05647]
[1763558544123,0.14865,91673.0,91672.0,0.04271]
[1763558544323,0.04349,91673.0,91672.0,0.04271]
[1763558544727,0.14869,91673.0,91672.0,0.04271]
[1763558545324,0.13558427,91673.0,91672.0,0.04271]
[1763558545726,0.13558427,91673.0,91672.0,0.05583]
[1763558546725,0.03038427,91673.0,91672.0,0.05583]
[1763558547124,0.13558427,91673.0,91672.0,0.05583]
[1763558547724,0.03038427,91673.0,91672.0,0.05583]
[1763558547918,0.13558427,91673.0,91672.0,0.05583]
[1763558548120,0.03762,91671.0,91670.0,0.0452927]
[1763558548324,0.14282,91671.0,91670.0,0.0452927]
[1763558549421,0.14898469,91670.0,91669.0,0.00012459]
[1763558549614,0.14906372,91670.0,91669.0,0.00012459]
[1763558551032,0.14906372,91670.0,91669.0,0.02265459]
[1763558551426,0.14906372,91670.0,91669.0,0.04468459]
[1763558551829,0.25426372,91670.0,91669.0,0.04468459]
[1763558552431,0.25426372,91670.0,91669.0,0.02265459]
[1763558552732,0.25426372,91670.0,91669.0,0.00012459]
[1763558554432,0.25426372,91670.0,91669.0,0.04466459]
[1763558555527,0.13595739,91670.0,91669.0,0.04466459]
[1763558555732,0.24115739,91670.0,91669.0,0.04466459]
[1763558558033,0.13595739,91670.0,91669.0,0.04466459]
[1763558558236,0.24115739,91670.0,91669.0,0.04466459]
[1763558559822,0.13595739,91670.0,91669.0,0.04466459]
[1763558560029,0.24115739,91670.0,91669.0,0.04466459]
[1763558563227,0.24115739,91670.0,91669.0,0.00012459]
[1763558563632,0.1249751,91663.0,91662.0,0.05766]
[1763558563940,0.5909351,91663.0,91662.0,0.04454]
[1763558564239,0.1249798,91659.0,91658.0,0.03504]
[1763558564435,0.1249798,91659.0,91658.0,0.02128]
[1763558564436,0.09876554,91659.0,91658.0,0.02128]
[1763558564738,0.09876554,91659.0,91658.0,0.04454]
[1763558565127,0.1249894,91651.0,91650.0,0.02916394]
[1763558565329,0.1249894,91651.0,91646.0,0.03918436]
[1763558565330,0.1249929,91648.0,91646.0,0.00027279]
[1763558565639,0.3766,91647.0,91646.0,0.00027279]
[1763558566235,0.3766,91647.0,91646.0,0.04481279]
[1763558566442,0.3766,91647.0,91646.0,0.02155279]
[1763558566838,0.4818,91647.0,91646.0,0.02155279]
[1763558567247,0.4818,91647.0,91646.0,0.04481279]
[1763558567630,0.4818,91647.0,91638.0,0.01339]
[1763558567838,0.0158,91639.0,91638.0,0.05793]
[1763558568034,0.121,91639.0,91638.0,0.05793]
[1763558568945,0.0158,91639.0,91638.0,0.05793]
[1763558569146,0.121,91639.0,91638.0,0.05793]
[1763558569841,0.0158,91639.0,91638.0,0.05793]
[1763558570343,0.121,91639.0,91638.0,0.05793]
[1763558570942,0.0158,91639.0,91638.0,0.05793]
[1763558571145,0.121,91639.0,91638.0,0.05793]
[1763558572448,0.0158,91634.0,91633.0,0.04454]
[1763558574444,0.121,91634.0,91633.0,0.04454]
[1763558574948,0.0158,91634.0,91633.0,0.04454]
[1763558575141,0.121,91634.0,91633.0,0.04454]
[1763558575950,0.121,91634.0,91633.0,0.02128]
[1763558576139,0.121,91634.0,91633.0,0.04454]
[1763558576334,0.121,91634.0,91630.0,0.00219803]
[1763558576335,0.1092108,91633.0,91630.0,0.00219803]
[1763558576546,0.0158,91626.0,91625.0,0.02916394]
[1763558576746,0.1250215,91624.0,91623.0,0.05044394]
[1763558576953,0.1250215,91624.0,91622.0,0.02916394]
[1763558577144,0.1250239,91622.0,91621.0,0.04454]
[1763558577443,0.0158,91622.0,91621.0,0.04454]
[1763558580741,0.121,91622.0,91621.0,0.04454]
[1763558581747,0.3608,91631.0,91630.0,0.02304]
[1763558581944,0.3608,91631.0,91630.0,0.04722803]
[1763558581945,0.466,91631.0,91630.0,0.04722803]
[1763558582149,0.3608,91631.0,91630.0,0.15644243]
[1763558582354,0.466,91631.0,91630.0,0.15644243]
[1763558582650,0.466,91631.0,91630.0,0.04722803]
[1763558582850,0.4739,91631.0,91630.0,0.04722803]
[1763558583236,0.466,91631.0,91630.0,0.04722803]
[1763558583641,0.4739,91631.0,91630.0,0.04722803]
[1763558583843,0.3608,91631.0,91630.0,0.04722803]
[1763558584050,0.00010372,91634.0,91633.0,0.04503]
[1763558584251,0.10530372,91634.0,91633.0,0.04503]
[1763558585847,0.00010372,91634.0,91633.0,0.04503]
[1763558586354,0.00016364,91641.0,91640.0,0.1542325]
[1763558586557,0.00016364,91641.0,91640.0,0.15643053]
[1763558587551,0.1538732,91657.0,91656.0,0.05849]
[1763558587769,0.02327,91657.0,91656.0,0.05849]
[1763558588144,0.5146615,91666.0,91665.0,0.04503]
[1763558588448,0.3608,91666.0,91665.0,0.04503]
[1763558589253,0.3608,91674.0,91673.0,0.1541932]
[1763558589553,0.46604,91674.0,91673.0,0.1541932]
[1763558589855,0.48931,91674.0,91673.0,0.1541932]
[1763558590149,0.38407,91674.0,91673.0,0.1541932]
[1763558590357,0.48931,91674.0,91673.0,0.1541932]
[1763558590650,0.51073,91674.0,91673.0,0.04503]
[1763558590856,0.04469,91671.0,91670.0,0.00219803]
[1763558591055,0.04469,91671.0,91670.0,0.04722803]
[1763558592761,0.04469,91671.0,91670.0,0.00219803]
[1763558593053,0.1538651,91663.0,91662.0,0.02304]
[1763558593244,0.6198651,91663.0,91662.0,0.04503]
[1763558593444,0.04469,91661.0,91660.0,0.00219803]
[1763558593644,0.04469,91661.0,91660.0,0.02523803]
[1763558594055,0.04469,91661.0,91660.0,0.04722803]
[1763558594648,0.14989,91661.0,91660.0,0.04722803]
[1763558595049,0.14989,91661.0,91656.0,0.00016364]
[1763558595050,0.1091822,91657.0,91656.0,0.00016364]
[1763558595348,0.1091822,91657.0,91656.0,0.04519364]
[1763558595349,0.1538722,91657.0,91656.0,0.04519364]
[1763558595749,0.1538722,91657.0,91656.0,0.02320364]
[1763558596146,0.1538722,91657.0,91656.0,0.00016364]
[1763558596747,0.1538722,91657.0,91656.0,0.02320364]
[1763558596946,0.1538722,91657.0,91656.0,0.00016364]
[1763558597141,0.1538722,91657.0,91656.0,0.04519364]
[1763558599748,0.1538722,91657.0,91656.0,0.02320364]
[1763558600352,0.1538722,91657.0,91656.0,0.00016364]
[1763558601243,0.1538722,91657.0,91656.0,0.02320364]
[1763558601752,0.1538722,91657.0,91656.0,0.04519364]
[1763558601948,0.04469,91657.0,91656.0,0.04519364]
[1763558602354,0.14989,91657.0,91656.0,0.04519364]
[1763558602754,0.04469,91657.0,91656.0,0.04519364]
[1763558602948,0.14989,91657.0,91656.0,0.04519364]
[1763558604354,0.04469,91657.0,91656.0,0.05837364]
[1763558604560,0.04506,91663.0,91662.0,0.05845]
[1763558605154,0.40586,91670.0,91669.0,0.04527]
[1763558605355,0.51106,91670.0,91669.0,0.04527]
[1763558606160,0.40586,91670.0,91669.0,0.04527]
[1763558606355,0.51106,91670.0,91669.0,0.04527]
[1763558606558,0.3608,91670.0,91669.0,0.04527]
[1763558606757,0.466,91670.0,91669.0,0.04527]
[1763558607257,0.48796,91670.0,91669.0,0.04527]
[1763558607459,0.51106,91670.0,91669.0,0.04527]
[1763558608855,0.3608,91670.0,91669.0,0.04527]
[1763558609059,0.51102,91670.0,91669.0,0.04527]
[1763558610065,0.1542351,91663.0,91662.0,0.05845]
[1763558610268,0.14471345,91663.0,91662.0,0.05845]
[1763558610465,0.03553835,91663.0,91662.0,0.05845]
[1763558610949,0.14471345,91663.0,91662.0,0.05845]
[1763558612556,0.14069835,91663.0,91662.0,0.05845]
[1763558614363,0.14069835,91663.0,91662.0,0.08762174]
[1763558615160,0.14069835,91663.0,91662.0,0.05845]
[1763558616066,0.14069835,91663.0,91662.0,0.04527]
[1763558616263,0.03338,91661.0,91660.0,0.02542803]
[1763558616463,0.03338,91661.0,91660.0,0.04683803]
[1763558616660,0.03338,91661.0,91660.0,0.00219803]
[1763558616856,0.03338,91661.0,91660.0,0.04683803]
[1763558618167,0.00716708,91661.0,91660.0,0.04683803]
[1763558619864,0.11232708,91661.0,91660.0,0.04683803]
[1763558620769,0.11232708,91661.0,91660.0,0.15601673]
[1763558620972,0.3608,91670.0,91663.0,0.1091748]
[1763558621274,0.3608,91670.0,91669.0,0.04464]
[1763558621569,0.46596,91670.0,91669.0,0.04464]
[1763558622761,0.3608,91670.0,91669.0,0.04464]
[1763558623264,0.46596,91670.0,91669.0,0.07392211]
[1763558623663,0.3608,91670.0,91669.0,0.04464]
[1763558623862,0.46596,91670.0,91669.0,0.04464]
[1763558624066,0.4699667,91670.0,91669.0,0.04464]
[1763558624462,0.3608,91670.0,91669.0,0.04464]
[1763558626371,0.43974887,91670.0,91669.0,0.04464]
[1763558627564,0.43974887,91670.0,91669.0,0.05251697]
[1763558627962,0.43974887,91670.0,91669.0,0.07392697]
[1763558628162,0.54891557,91670.0,91669.0,0.04464]
[1763558628865,0.00016364,91675.0,91674.0,0.04464]
[1763558629167,0.10532364,91675.0,91674.0,0.04464]
[1763558629669,0.00016364,91675.0,91674.0,0.04464]
[1763558630065,0.10532364,91675.0,91674.0,0.04464]
[1763558630567,0.00016364,91675.0,91674.0,0.04464]
[1763558630772,0.10532364,91675.0,91674.0,0.04464]
[1763558630972,0.00016364,91675.0,91674.0,0.04464]
[1763558631764,0.1091467,91687.0,91685.0,0.04464]
[1763558631965,0.10543267,91686.0,91685.0,0.04464]
[1763558633069,0.10743267,91686.0,91685.0,0.04464]
[1763558633466,0.00227267,91686.0,91685.0,0.04464]
[1763558634873,0.00227267,91686.0,91685.0,0.05246423]
[1763558635171,0.00227267,91686.0,91685.0,0.04464]
[1763558636477,0.10739267,91686.0,91685.0,0.04464]
[1763558641479,0.10639267,91686.0,91685.0,0.04464]
[1763558642782,0.10639267,91686.0,91680.0,0.03143226]
[1763558642783,0.1091537,91681.0,91680.0,0.02340803]
[1763558642967,0.1091537,91681.0,91680.0,0.04610803]
[1763558643169,0.9750737,91681.0,91676.0,0.00016787]
[1763558643375,0.9750737,91681.0,91658.0,0.01308]
[1763558643376,0.1091727,91665.0,91658.0,0.01308]
[1763558643676,0.1091727,91665.0,91662.0,0.05658]
[1763558643677,0.3608,91663.0,91662.0,0.05658]
[1763558644381,0.3608,91663.0,91662.0,0.01267]
[1763558645779,0.3608,91663.0,91662.0,0.03388]
[1763558646176,0.3608,91663.0,91662.0,0.05658]
[1763558646880,0.3608,91663.0,91662.0,0.01267]
[1763558647080,0.3608,91663.0,91662.0,0.03388]
[1763558647380,0.3608,91663.0,91662.0,0.05658]
[1763558648783,0.466,91663.0,91662.0,0.05658]
[1763558649079,0.3608,91663.0,91662.0,0.05658]
[1763558649580,0.466,91663.0,91662.0,0.05658]
[1763558649875,0.3608,91663.0,91662.0,0.05658]
[1763558650080,0.466,91663.0,91662.0,0.05658]
[1763558650267,0.1091694,91668.0,91667.0,0.04391]
[1763558650472,0.2143694,91668.0,91667.0,0.04391]
[1763558650668,0.1091694,91668.0,91667.0,0.04391]
[1763558650873,0.1052,91668.0,91667.0,0.04391]
[1763558651070,0.3608,91669.0,91668.0,0.1530791]
[1763558651268,0.466,91669.0,91668.0,0.04391]
[1763558653985,0.3608,91669.0,91668.0,0.04391]
[1763558654183,0.466,91669.0,91668.0,0.04391]
[1763558654983,0.3608,91669.0,91668.0,0.04391]
[1763558655378,0.466,91669.0,91668.0,0.04391]
[1763558656691,0.3608,91669.0,91668.0,0.04391]
[1763558656882,0.466,91669.0,91668.0,0.04391]
[1763558659492,0.466,91669.0,91668.0,0.05699]
[1763558660284,0.466,91669.0,91668.0,0.1661591]
[1763558660887,0.00016364,91672.0,91671.0,0.04391]
[1763558664501,0.1091518,91683.0,91682.0,0.04532]
[1763558664696,0.2143118,91683.0,91682.0,0.04532]
[1763558664903,0.1091518,91683.0,91682.0,0.04532]
[1763558665210,0.10942137,91686.0,91685.0,0.04532]
[1763558665405,0.21458137,91686.0,91685.0,0.04532]
[1763558666417,0.21558137,91686.0,91685.0,0.04532]
[1763558666715,0.11042137,91686.0,91685.0,0.04532]
[1763558667009,0.10743267,91686.0,91685.0,0.04532]
[1763558670116,0.00227267,91686.0,91685.0,0.04532]
[1763558670312,0.00016364,91695.0,91694.0,0.1544582]
[1763558670504,0.10532364,91695.0,91694.0,0.1544582]
[1763558670707,0.00016364,91695.0,91694.0,0.1544582]
[1763558671314,0.00016364,91695.0,91694.0,0.04532]
[1763558671811,0.00116364,91695.0,91694.0,0.04532]
[1763558672516,0.00216364,91695.0,91694.0,0.04532]
[1763558673817,0.3608,91708.0,91707.0,0.05724]
[1763558676114,0.00016364,91717.0,91716.0,0.04494]
[1763558676420,0.10532364,91717.0,91716.0,0.04494]
[1763558677116,0.10632364,91717.0,91716.0,0.04494]
[1763558683813,0.10628364,91717.0,91716.0,0.04494]
[1763558685814,0.00116364,91717.0,91716.0,0.04494]
[1763558688920,0.00027255,91726.0,91725.0,0.04494]
[1763558689316,0.03921187,91752.0,91725.0,0.04494]
[1763558689317,0.3608,91745.0,91735.0,0.05794]
[1763558689624,0.4698882,91736.0,91735.0,0.05794]
[1763558691527,0.3608,91736.0,91735.0,0.05794]
[1763558691921,0.001,91736.0,91735.0,0.05794]
[1763558692524,0.002,91736.0,91735.0,0.05794]
[1763558694415,0.001,91736.0,91735.0,0.05794]
[1763558694812,0.1090882,91736.0,91735.0,0.05794]
[1763558695723,0.36096355,91745.0,91744.0,0.04494]
[1763558695929,0.47004105,91745.0,91744.0,0.04494]
[1763558698129,0.47004105,91745.0,91742.0,0.013]
[1763558698519,0.47004105,91745.0,91742.0,0.0361]
[1763558698819,0.47004105,91745.0,91742.0,0.05794]
[1763558699627,0.36096355,91745.0,91744.0,0.04494]
[1763558700230,0.00016355,91745.0,91744.0,0.04494]
[1763558703027,0.1090556,91764.0,91755.0,0.04546]
[1763558703226,0.36107243,91766.0,91765.0,0.04352]
[1763558703423,0.46615243,91766.0,91765.0,0.04352]
[1763558703624,0.57520493,91766.0,91765.0,0.04352]
[1763558704229,0.47112493,91766.0,91765.0,0.04352]
[1763558704432,0.57620493,91766.0,91765.0,0.04352]
[1763558704824,0.57520493,91766.0,91765.0,0.04352]
[1763558705428,0.36107243,91766.0,91765.0,0.04352]
[1763558705639,0.00027243,91766.0,91765.0,0.04352]
[1763558706031,0.00016355,91775.0,91774.0,0.04352]
[1763558707634,0.10464001,91790.0,91771.0,0.3608]
[1763558707635,0.3608,91790.0,91785.0,0.04352]
[1763558707930,0.3608,91790.0,91784.0,0.01331]
[1763558707931,0.3608,91790.0,91789.0,0.04352]
[1763558708131,0.46588,91790.0,91789.0,0.04352]
[1763558708341,0.3608,91790.0,91789.0,0.04352]
[1763558708633,0.36090801,91799.0,91798.0,0.04352]
[1763558710434,0.00010801,91799.0,91798.0,0.04352]
[1763558711446,0.36090801,91799.0,91798.0,0.04352]
[1763558711740,0.36390801,91799.0,91798.0,0.04352]
[1763558713224,0.36390801,91799.0,91792.0,0.01331]
[1763558713429,0.1090205,91793.0,91792.0,0.05683]
[1763558713830,0.1090171,91796.0,91792.0,0.01331]
[1763558714037,0.1090171,91796.0,91795.0,0.04352]
[1763558714739,0.36190801,91799.0,91798.0,0.04352]
[1763558715032,0.00110801,91799.0,91798.0,0.04352]
[1763558716441,0.00310801,91799.0,91798.0,0.04352]
[1763558717133,0.00210801,91799.0,91798.0,0.04352]
[1763558717734,0.00010801,91799.0,91798.0,0.04352]
[1763558717939,0.00110801,91799.0,91798.0,0.04352]
[1763558718135,0.00210801,91799.0,91798.0,0.04352]
[1763558720045,0.36290801,91799.0,91798.0,0.04352]
[1763558721843,0.00210801,91799.0,91798.0,0.04352]
[1763558722450,0.00027231,91806.0,91805.0,0.04352]
[1763558722747,0.10531231,91806.0,91805.0,0.04352]
[1763558723630,0.10631231,91806.0,91805.0,0.04352]
[1763558724442,0.10731231,91806.0,91805.0,0.04352]
[1763558725242,0.10731231,91806.0,91805.0,0.02116]
[1763558726041,0.10731231,91806.0,91805.0,0.04311]
[1763558729540,0.10731231,91806.0,91805.0,0.02116]
[1763558729847,0.10731231,91806.0,91800.0,0.05873803]
[1763558730043,0.109011,91801.0,91800.0,0.05873803]
[1763558731046,0.109011,91801.0,91800.0,0.01550803]
[1763558731447,0.109011,91801.0,91800.0,0.03678803]
[1763558731848,0.10531231,91806.0,91805.0,0.04475]
[1763558732048,0.21431761,91806.0,91805.0,0.04475]
[1763558734346,0.10531231,91806.0,91805.0,0.04475]
[1763558734552,0.10527231,91806.0,91805.0,0.04475]
[1763558735141,0.00027231,91806.0,91805.0,0.04475]
[1763558735342,2.31e-06,91806.0,91805.0,0.04475]
[1763558735643,0.3608,91816.0,91815.0,0.04475]
[1763558735842,0.4658,91816.0,91815.0,0.04475]
[1763558736550,0.5747934,91816.0,91815.0,0.04475]
[1763558740242,0.4658,91816.0,91815.0,0.04475]
[1763558746442,0.1089946,91815.0,91812.0,0.01283]
[1763558746644,0.1089946,91815.0,91812.0,0.0351]
[1763558746849,0.1089946,91815.0,91812.0,0.05758]
[1763558748654,0.1089946,91815.0,91812.0,0.01283]
[1763558748855,0.1090017,91809.0,91806.0,0.00016336]
[1763558749155,0.1090041,91807.0,91806.0,0.00016336]
[1763558749857,0.1090041,91807.0,91788.0,0.3608]
[1763558749858,0.1090195,91794.0,91792.0,0.03558]
[1763558750160,0.4658,91793.0,91792.0,0.03558]
[1763558752062,0.8266,91793.0,91792.0,0.01331]
[1763558753454,0.8276,91793.0,91792.0,0.05806]
[1763558754162,0.8286,91793.0,91792.0,0.05806]
[1763558759567,0.8286,91793.0,91792.0,0.01331]
[1763558759769,0.8286,91793.0,91784.0,0.01283]
[1763558759770,0.1090302,91785.0,91784.0,0.0351]
[1763558759965,0.5748302,91785.0,91784.0,0.05758]
[1763558760962,0.4658,91785.0,91784.0,0.05758]
[1763558761164,0.4668,91785.0,91784.0,0.05758]
[1763558763568,0.3618,91785.0,91784.0,0.1666114]
[1763558763868,0.4668,91785.0,91784.0,0.05758]
[1763558765174,0.3618,91785.0,91784.0,0.05758]
[1763558771274,0.3618,91785.0,91784.0,0.0351]
[1763558771582,0.3618,91785.0,91784.0,0.05696]
[1763558773479,0.3618,91785.0,91784.0,0.03457]
[1763558776169,0.3618,91785.0,91784.0,0.05643]
[1763558779773,0.4708302,91785.0,91784.0,0.05643]
[1763558781176,0.3618,91785.0,91784.0,0.05643]
[1763558782778,0.4708302,91785.0,91784.0,0.05643]
[1763558783487,0.3618,91785.0,91784.0,0.05643]
[1763558784681,0.4668,91785.0,91784.0,0.05643]
[1763558787588,0.4668,91785.0,91784.0,0.1654614]
[1763558788474,0.001,91785.0,91784.0,0.1654614]
[1763558788682,0.03919749,91799.0,91798.0,0.1519047]
[1763558788888,0.1090112,91801.0,91800.0,0.01549803]
[1763558789183,0.105,91801.0,91800.0,0.05838803]
[1763558790089,0.106,91801.0,91800.0,0.05838803]
[1763558790589,0.107,91801.0,91800.0,0.05838803]
[1763558797489,0.107,91801.0,91800.0,0.01549803]
[1763558797688,0.107,91801.0,91800.0,0.01524803]
[1763558797990,0.107,91801.0,91800.0,0.05845803]
[1763558801691,0.002,91801.0,91800.0,0.05845803]
[1763558801882,0.107,91801.0,91800.0,0.05845803]
[1763558802293,0.2160112,91801.0,91800.0,0.05845803]
[1763558803689,0.2160112,91801.0,91800.0,0.01305]
[1763558803891,0.002,91801.0,91800.0,0.05845803]
[1763558804092,0.3628,91801.0,91800.0,0.05845803]
[1763558804286,0.002,91801.0,91800.0,0.05845803]
[1763558805593,3.04e-06,91802.0,91801.0,0.1522212]
[1763558805893,0.3608,91820.0,91819.0,0.05626]
[1763558806092,0.4658,91820.0,91819.0,0.05626]